Cogmind - Beta 14 @@@ ROGUE MODE // 2024.08.30 @ 20:15:52 Player: Epsilon 11 Result: Destroyed by D-53 Grenadier with Mini Grenade Launcher Performance ------------- Evolutions (0) 0 Regions Visited (2) 400 Robots Destroyed (14) 70 Value Destroyed (334) 334 Prototype IDs (0) 0 Alien Tech Used (0) 0 Bonus (0) 0 TOTAL SCORE: 804 Bonus ------- None Cogmind --------- Core Integrity 0/250 Matter 300/300 Energy 88/100 System Corruption 2% Temperature Cool (0) Movement Rolling (100) Location -10/Mines Parts ------- > --- POWER (1) -------- (None) > --- PROPULSION (2) --- Compact Wheel > --- UTILITY (2) ------ Improved Heat Sink Medium Storage Unit > --- WEAPON (2) ------- (None) > --- INVENTORY (10) --- Ion Engine Aluminum Leg Aluminum Leg Signal Interpreter Small Laser Small Laser Peak State ------------ > --- POWER ------------ Light Nuclear Core > --- PROPULSION ------- Wheel Compact Wheel > --- UTILITY ---------- Improved Heat Sink Medium Storage Unit > --- WEAPON ----------- Particle Gun Assault Rifle > --- INVENTORY -------- Ion Engine Aluminum Leg Aluminum Leg Compact Wheel Signal Interpreter Small Laser Small Laser [Rating: 12] Favorites ----------- Power Light Nuclear Core Engine Ion Engine Power Core Light Nuclear Core Propulsion Wheel Wheel Wheel Utility Medium Storage Unit Device Improved Heat Sink Storage Medium Storage Unit Weapon Assault Rifle Energy Gun Particle Gun Ballistic Gun Assault Rifle Build | -11 -10 -10 ------- Run | Yrd Mat Min Slots Evolved . | . . . Power . | . . . Propulsion . | . . . Utility . | . . . Weapon . | . . . Parts Attached 17 | 6 5 6 Power 3 | 1 1 1 Engine 1 | 1 . . Core 2 | . 1 1 Reactor . | . . . Propulsion 5 | 2 1 2 Treads . | . . . Leg . | . . . Wheel 5 | 2 1 2 Hover . | . . . Flight . | . . . Utility 3 | 1 1 1 Device 1 | . . 1 Storage 2 | 1 1 . Processor . | . . . Hackware . | . . . Protection . | . . . Artifact . | . . . Weapon 6 | 2 2 2 Energy Gun 3 | 1 . 2 Energy Cannon . | . . . Ballistic Gun 3 | 1 2 . Ballistic Cannon . | . . . Launcher . | . . . Special Weapon . | . . . Impact Weapon . | . . . Slashing Weapon . | . . . Piercing Weapon . | . . . Special Melee Weapon . | . . . Unidentified Prototypes . | . . . Parts Lost 9 | . 2 7 Power 3 | . 1 2 Propulsion 3 | . . 3 Utility . | . . . Weapon 3 | . 1 2 Highest Loss Streak 4 | . 2 4 To Critical Strikes . | . . . Average Slot Usage (%) 77 | . 72 83 Engine 2 | . 4 . Core 9 | . 8 10 Wheel 25 | . 27 23 Device 3 | . . 9 Storage 14 | . 14 14 Energy Gun 7 | . 3 12 Ballistic Gun 13 | . 12 13 Peak Build Rating 12 | 6 8 12 Average Rating 7 | 4 6 9 On Entrance 4 | . 6 8 Naked Turns . | . . . Heaviest Build 21 | 14 19 21 Greatest Support 32 | 20 20 32 Greatest Overweight (x) 1 | . 1 1 Average Overweight (x) . | . . . Largest Inventory Capacity 10 | 8 10 10 Average Capacity 9 | 7 8 10 Most Carried 7 | 3 7 7 Average Carried 4 | 1 3 6 Final Capacity 10 | 8 10 10 Final Carried 7 | 3 7 6 Class Distribution -------------------- 71% | Mutant 28% | Scavenger-Mutant Dominant Class ---------------- Mutant | -10/Materials Scavenger-Mutant | -10/Mines Resources | -11 -10 -10 ----------- Run | Yrd Mat Min Matter Collected 514 | 202 213 99 Remotely . | . . . Salvage Created 566 | . 375 191 Parts 32 | . 20 12 Haulers Intercepted 1 | . 1 . Recyclers Shooed 2 | . 1 1 Parts Field Recycled . | . . . Retrieved Matter . | . . . Parts Self-Destructed . | . . . Prevented . | . . . Kills | -11 -10 -10 ------- Run | Yrd Mat Min Combat Hostiles Destroyed 10 | . 5 5 Guns 10 | . 5 5 Classes Destroyed 5 | . 4 1 Hauler 1 | . 1 . Recycler 2 | . 1 1 Watcher 1 | . 1 . Swarmer 3 | . . 3 Grunt 7 | . 5 2 Best Kill Streak 3 | . 2 3 Combat Bots Only 3 | . 2 3 Max Kills in Single Turn 2 | . 2 1 Gunslinging . | . . . Exploded . | . . . Melee . | . . . Uniques/NPCs Destroyed . | . . . Combat | -11 -10 -10 -------- Run | Yrd Mat Min Hostile Shots Fired 74 | . 38 36 Missed 21 | . 14 7 Damage Taken 933 | . 323 610 Core 277 | . 63 214 Absorbed by Shields . | . . . Core Remaining (%) 100 | 100 . . Volleys Fired 51 | . 34 17 Largest 2 | . 2 2 Hottest 85 | . 60 85 Shots Fired 75 | . 44 31 Gun 75 | . 44 31 Cannon . | . . . Launcher . | . . . Special . | . . . Kinetic 58 | . 40 18 Thermal 13 | . . 13 Explosive . | . . . Electromagnetic 4 | . 4 . Robot Hit Streak 9 | . 5 9 Robot Miss Streak 3 | . 3 3 Penetration Max . | . . . Secondary Targets 1 | . . 1 Max Gunslinging Chain 1 | . . 1 Shots Hit Robots 47 | . 27 20 Core Hits 23 | . 13 10 Critical Kills . | . . . Critical Parts Destroyed . | . . . Critical Strikes 1 | . 1 . Corrupt 1 | . 1 . Melee Attacks . | . . . Impact . | . . . Slashing . | . . . Piercing . | . . . Sneak Attacks . | . . . Combat Hostiles . | . . . Follow-up Attacks . | . . . Damage Inflicted 614 | . 378 236 Guns 609 | . 373 236 Cannons . | . . . Explosions . | . . . Melee . | . . . Ramming 5 | . 5 . Kinetic 480 | . 334 146 Thermal 90 | . . 90 Explosive . | . . . Electromagnetic 39 | . 39 . Impact . | . . . Slashing . | . . . Piercing . | . . . Highest Corruption 2 | . 2 2 Average Corruption 2 | . 2 2 Corruption Purged . | . . . Corruption Blocked . | . . . Effects 6 | . 2 4 Energy Discharges 3 | . 1 2 Parts Rejected 1 | . . 1 Data Loss (minor) 2 | . 1 1 Overload Shots . | . . . Overflow Damage . | . . . Projectiles . | . . . Explosions . | . . . Melee . | . . . Knockbacks . | . . . Impact . | . . . Kinetic . | . . . Secondary . | . . . Self-Inflicted Damage 2 | . 2 . Shots . | . . . Rammed 1 | . 1 . Targets Rammed 1 | . 1 . Kicked . | . . . Crushed . | . . . Highest Temperature 18 | . 18 8 Average Temperature 6 | . 8 3 Received Heat Transfer 282 | . 177 105 Siege Activations . | . . . Robots Corrupted . | . . . Combat Hostiles . | . . . Parts Fried 1 | . 1 . Impact Corruptions . | . . . Robots Melted . | . . . Combat Hostiles . | . . . Parts Melted . | . . . Heat Transferred 212 | . . 212 Parts Sabotaged . | . . . Parts Stolen . | . . . Parts Stripped . | . . . Power Chain Reactions . | . . . Alert | -11 -10 -10 ------- Run | Yrd Mat Min Peak Influence 211 | . 193 211 Initial 75 | . . 75 Average 92 | . 61 160 Maximum Alert Level 1 | . . 1 Low Security (%) 90 | 100 100 73 Level 1 9 | . . 26 Level 2 . | . . . Level 3 . | . . . Level 4 . | . . . Level 5 . | . . . High Security . | . . . Max Security . | . . . Squads Dispatched 1 | . 1 . Investigation . | . . . Extermination . | . . . Reinforcement 1 | . 1 . Assault . | . . . Garrison . | . . . Intercept . | . . . Searches Triggered . | . . . Construction Impeded . | . . . Haulers Reinforced . | . . . Active Scanning Responses . | . . . Cargo Convoy Interrupts . | . . . Stealth | -11 -10 -10 --------- Run | Yrd Mat Min Distress Signals . | . . . Communications Jammed . | . . . Distress Signals . | . . . Times Spotted 16 | . 9 7 Peak Tracking Total 3 | . 2 3 Tactical Retreats . | . . . Traps | -11 -10 -10 ------- Run | Yrd Mat Min Traps Triggered 2 | . 2 . Indirectly . | . . . Trap Hack Attempts . | . . . Triggered . | . . . Disarmed . | . . . Reprogrammed . | . . . Reused . | . . . Traps Extracted . | . . . Installed . | . . . Triggered . | . . . Machines | -11 -10 -10 ---------- Run | Yrd Mat Min Machines Disabled 1 | . . 1 Max in Single Turn 1 | . . 1 Machines Repaired . | . . . Machines Dismantled . | . . . Machines Sabotaged . | . . . Overloaded Fab Kills . | . . . Hacking | -11 -10 -10 --------- Run | Yrd Mat Min Machines Accessed 3 | . 2 1 Terminals 2 | . 1 1 Fabricators . | . . . Repair Stations . | . . . Recycling Units 1 | . 1 . Scanalyzers . | . . . Garrison Access . | . . . Total Hacks 12 | . 7 5 Successful 5 | . 3 2 Failed 7 | . 4 3 Catastrophic . | . . . Database Lockouts . | . . . Manual 8 | . 3 5 Terminals 7 | . 2 5 Fabricators . | . . . Repair Stations . | . . . Recycling Units 5 | . 5 . Scanalyzers . | . . . Garrison Access . | . . . Terminal Hacks 1 | . . 1 Zone Layout 1 | . . 1 Fabricator Hacks . | . . . Repair Station Hacks . | . . . Recycling Unit Hacks 1 | . 1 . Report Inventory 1 | . 1 . Scanalyzer . | . . . Garrison Access Hacks . | . . . Unauthorized Hacks 3 | . 2 1 Terminals 2 | . 1 1 Botnet 2 | . 1 1 Fabricators . | . . . Repair Stations . | . . . Recycling Units 1 | . 1 . Reject 1 | . 1 . Scanalyzers . | . . . Garrison Access . | . . . Data Cores Recovered . | . . . Used . | . . . Hacking Detections 3 | . 2 1 Full Trace Events 1 | . 1 . Feedback Events . | . . . Feedback Blocked . | . . . Robot Schematics Acquired . | . . . Robots Built . | . . . Authchips . | . . . Time . | . . . Total Robot Build Rating . | . . . Part Schematics Acquired . | . . . Parts Built . | . . . Authchips . | . . . Time . | . . . Total Part Build Rating . | . . . Parts Repaired . | . . . Time . | . . . Parts Recycled . | . . . Recycled Matter . | . . . Retrieved Matter . | . . . Retrieved Components . | . . . Parts Scanalyzed . | . . . Part Schematics Acquired . | . . . Parts Damaged . | . . . Bothacking | -11 -10 -10 ------------ Run | Yrd Mat Min Used RIF Installer . | . . . Robots Hacked . | . . . Non-combat . | . . . Combat . | . . . Robot Hacks Applied . | . . . Relay Couplers Released . | . . . Fabnet Peak Effective % . | . . . Robots Rewired . | . . . Allies Hacked . | . . . Hacks Repelled . | . . . Allies | -11 -10 -10 -------- Run | Yrd Mat Min Total Allies . | . . . Largest Group . | . . . Highest-Rated Group . | . . . Highest-Rated Ally . | . . . Total Orders . | . . . Ally Attacks . | . . . Total Damage . | . . . Kills . | . . . Allies Corrupted . | . . . Allies Melted . | . . . Intel | -11 -10 -10 ------- Run | Yrd Mat Min Robot Analysis Total . | . . . Derelict Logs Recovered . | . . . Drone Launches . | . . . Drone Recoveries . | . . . Exploration | -11 -10 -10 ------------- Run | Yrd Mat Min Turns Passed 481 | 36 271 174 Spaces Moved 361 | 32 206 123 Core 3 | 3 . . Treads . | . . . Legs . | . . . Wheels 358 | 29 206 123 Hover . | . . . Flight . | . . . Fastest Speed 50 | 50 80 90 Average Speed 85 | 77 80 94 Slowest Speed 115 | 80 95 115 Overloaded Moves . | . . . Propulsion Burnouts . | . . . Robots Hopped . | . . . Cave-ins Triggered . | . . . Exploration Rate (%) 25 | 4 40 33 Regions Visited 2 Branch Regions 1 Pre-discovered Areas . | . . . Known Exits Taken . | . . . Unknown Exits Taken 2 | 1 1 . Scrap Searched . | . . . Spaces Dug . | . . . Terrain Destroyed . | . . . Melee . | . . . Projectile . | . . . AOE . | . . . Terrain Rammed . | . . . Walls Destroyed . | . . . Machines Disabled . | . . . Actions | -11 -10 -10 --------- Run | Yrd Mat Min Total 452 | 40 265 147 Wait 15 | . 14 1 Move 359 | 31 205 123 Hop . | . . . Pick Up 7 | 3 4 . Fast Attach 14 | 6 5 3 Attach 2 | . . 2 Detach . | . . . Swap 1 | . . 1 Drop 2 | . 2 . Fire 51 | . 34 17 Melee . | . . . Ram 1 | . 1 . Kick . | . . . Crush . | . . . Escape Stasis . | . . . Rewire . | . . . Trap . | . . . Miscellaneous . | . . . Route ------- -11/Scrapyard -10/Materials -10/Mines History --------- Turn | Location | Event 20 | -11/Scrapyard | Discovered new exit (range 15) 37 | -11/Scrapyard | Entered Materials 248 | -10/Materials | Discovered new exit (range 12) 308 | -10/Materials | Entered Mines 314 | -10/Mines | Build established: Mutant 394 | -10/Mines | Assembled infested the area 422 | -10/Mines | Core integrity fell below 50% 476 | -10/Mines | Core integrity fell below 20% 482 | -10/Mines | Destroyed by D-53 Grenadier with Mini Grenade Launcher Last Messages --------------- 00386_ K-01 Serf collects debris. 00394_ ALERT: Infestation in the mines, dispatching Demolisher response squad. 00397_ K-01 Serf collects debris. 00413_ Wheel destroyed. 00415_ S-10 Pest destroyed. 00430_ Acquired 20 matter. 00432_ Acquired 10 matter. 00471_ K-01 Serf destroyed. 00471_ U-05 Engineer lays Concrete. 00472_ Lgt. Nuclear Core destroyed. 00473_ Com. Wheel destroyed. 00473_ U-05 Engineer builds a Wall. 00473_ K-01 Serf collects debris. 00475_ Assault Rifle destroyed. 00476_ System corrupted: Energy discharge (-30). 00477_ K-01 Serf collects debris. 00478_ The unstable cave ceiling collapses. 00479_ Particle Gun destroyed. 00480_ K-01 Serf collects debris. Map ----- +----------------------------------------------------+ | ????????????? ##??## ##????????????????????? | | ????????????? ##??## ##????????????????????? | | ????????????? #### ################?????? | | ????????????? #?????? | | ????????????? ## ########## #?????? | | ????????????? ### #????????# #?????? | | ????????????? ########T# #####????# #?????? | | ?????????????##### ##?????# #????# #?????? | | ?????????????#???# ######## """ [ #????# #?????? | | ?????????????????# """* #????# #?????? | | ?????????????########## ## ""%! #????# #?????? | | ????????????# ##????# ## % #????# #?????? | | ???????????## #????# ###### #####????# #?????? | | ???????????# #???## ###??#!#???????## #?????? | | ???????????# #??## ##?# #?####### #?????? | | ???????????# #### ###%#?# ?????? | | ????????????# ## ## #?# ?????? | | ?????????????# ## #?# ### ?????? | | ?????????????#### ### ### #?## ?????? | | ????????????????### ####?# #??# ?????? | | ??????????????????## ##????##### #?## ?????? | | ???????????????????## #######???# #?# ?????? | | ????????????????????## ## ##?????????????????? | | ?????????????????????## ##?? ##??????????? | | ??????????????????????# ## #??????????? | | ??????#???####???????## @ k t ##?????????? | | ??????# ?? ??????# #?????????? | | ?????? # ??# ????#### ## #????????? | | ??????? ## ??## ##??? ?????????? | | ??????? #?# ##?????? ???????????? | | ???????? ! ## # ##???????????????????? | | ????????????# ##????????????????????? | | ????????????# ##???###???????????????? | | ????????????## #???## ###?????????????? | | ?????????????# % d d #??# ##????????????? | | ?????????????#k # ###??# #????????????? | | ????????? %= #?????# #????????????? | | ???????# = ##????## ##????????????? | | ???????# ### ##### ####### ##?????????????? | | ???????????## ##???# ##??????????????? | | ????????????## ?????# ##???????????????? | | ?????????????#??????## """ ##????????????????? | | ?????????????????????# """ ##?????????????????? | | ?????????????????????# """ #####??????????????? | | ?????????????????????## [#??????????????? | | ??????????????????????#### *[#??????????????? | | ?????????????????????????########%#??????????????? | | ????????????????????????????????#=#??????????????? | | ????????????????????????????????#=#??????????????? | | ???????????????????????????????## #####??????????? | +----------------------------------------------------+ Best States ------------- Heat Dissipation 39 Energy Generation 14 Energy Capacity 250 Matter Stores 300 Matter Capacity 300 Sight Range 16 Terrain Scan Density 10 Evasion (%) 44 Item Schematics ----------------- None Robot Schematics ------------------ None Fabricated ------------ Nothing Alien Tech Used ----------------- None Achievements -------------- None Challenges ------------ None Game ------ Seed ArcImpactPrototype Manual? 0 Play Time 00:08:48 Cumulative 140.8 hours Start 2024.08.30 @ 20:09:19 End 2024.08.30 @ 20:15:52 Sessions 1 Manual Loads 0 Difficulty Rogue Special Mode None Game No. 62 Rogue 19 Adventurer 43 Explorer 0 Win Type - Total 4 Types 2/0/1/0/0/0/0/1/0 Lore% 56 Gallery% 63 Achievement% 58 Wizard Run 0 Options --------- Layout 0 ASCII 0 Keyboard 0 Movement Mouse Keybinds 0 Fullscreen 1 Font 24/Smallcaps Map View 76x50 Zoom Use 0% Tactical HUD 1 Map Filters NONE Filters NONE Steam 1 RUN: 6a93009d-9ee0-4d19-b99d-ae2060be9e76